bitfinex-derivatives/quotes_SOLF0:USTF0_20250924
["timestamp","ask_amount","ask_price","bid_price","bid_amount"]
[1758705548618,1.18926914,210.29,210.25,7.75]
[1758705548821,4.2784,210.3,210.24,8.27382491]
[1758705549216,4.2784,210.3,210.25,11.74442491]
[1758705549611,11.9784,210.3,210.26,7.75]
[1758705549813,11.9784,210.3,210.25,3.99442491]
[1758705550416,11.9784,210.3,210.26,7.75]
[1758705551324,11.9784,210.3,210.25,3.99442491]
[1758705551725,11.9784,210.3,210.26,7.75]
[1758705553025,11.9787,210.29,210.26,7.75]
[1758705554623,4.2782,210.31,210.26,7.75]
[1758705554826,7.7,210.3,210.25,3.99442491]
[1758705555021,7.7,210.3,210.26,7.75]
[1758705555923,4.2782,210.31,210.26,11.74442491]
[1758705556124,7.7,210.3,210.26,11.74442491]
[1758705556726,7.7,210.3,210.27,7.75]
[1758705558729,7.7,210.34,210.27,7.75]
[1758705558923,75.0633,210.43,210.26,3.99442491]
[1758705558924,7.7,210.4,210.29,11.74442491]
[1758705559124,7.7,210.4,210.31,7.75]
[1758705559531,7.7,210.4,210.31,3.99442491]
[1758705559733,7.7,210.4,210.33,7.75]
[1758705560033,7.7,210.4,210.33,11.74442491]
[1758705560224,7.7,210.4,210.34,7.75]
[1758705561530,7.7,210.4,210.34,83.37]
[1758705562829,11.9764,210.4,210.34,83.37]
[1758705564030,11.9764,210.4,210.34,7.75]
[1758705564231,11.9764,210.4,210.34,58.73]
[1758705564937,7.7,210.4,210.34,63.0074]
[1758705565138,7.7,210.4,210.35,7.73]
[1758705565334,7.7,210.4,210.34,55.2574]
[1758705565542,7.7,210.4,210.35,7.73]
[1758705566035,4.276,210.42,210.35,7.73]
[1758705566538,4.276,210.42,210.36,7.73]
[1758705569632,4.276,210.42,210.36,104.93]
[1758705570335,4.276,210.42,210.37,7.73]
[1758705570533,7.97,210.41,210.36,97.2]
[1758705570941,7.97,210.41,210.37,7.73]
[1758705571537,7.97,210.41,210.36,97.2]
[1758705571740,7.97,210.41,210.37,7.73]
[1758705571934,7.97,210.41,210.36,97.2]
[1758705572135,7.97,210.41,210.37,7.73]
[1758705572537,7.97,210.41,210.36,97.2]
[1758705572841,7.97,210.41,210.37,7.73]
[1758705573236,7.97,210.41,210.36,97.2]
[1758705573438,7.97,210.41,210.37,7.73]
[1758705573739,7.97,210.41,210.36,97.2]
[1758705573740,7.97,210.5,210.39,7.73]
[1758705574137,7.97,210.5,210.44,7.73]
[1758705574437,68.62989239,210.55,210.45,7.73]
[1758705574438,2.15629239,210.55,210.45,7.73]
[1758705574641,7.97,210.54,210.45,7.73]
[1758705574842,12.2435,210.54,210.46,7.73]
[1758705575736,7.97,210.54,210.47,7.73]
[1758705578236,7.97,210.54,210.48,115.4]
[1758705579043,4.2737,210.53,210.48,115.4]
[1758705579246,4.2737,210.53,210.49,7.73]
[1758705579247,12.2437,210.53,210.49,7.73]
[1758705581442,7.97,210.52,210.49,7.73]
[1758705581637,7.97,210.52,210.43,7.73]
[1758705581844,7.97,210.55,210.46,7.73]
[1758705582136,66.4704,210.56,210.47,27.58]
[1758705582341,7.97,210.55,210.47,27.58]
[1758705582538,4.274,210.52,210.47,27.58]
[1758705582745,7.97,210.51,210.48,7.73]
[1758705586645,7.97,210.51,210.47,27.58]
[1758705586848,7.97,210.49,210.44,7.73]
[1758705587553,1.37735093,210.5,210.44,7.73]
[1758705587741,12.2446,210.49,210.44,7.73]
[1758705587943,4.2746,210.49,210.44,7.73]
[1758705588344,7.97,210.47,210.44,7.73]
[1758705588648,9.34735093,210.47,210.4,35.79]
[1758705589648,7.97,210.44,210.36,13.38435093]
[1758705589854,7.97,210.44,210.37,57.96]
[1758705590853,12.2459,210.42,210.37,57.96]
[1758705591054,12.2459,210.42,210.38,7.73]
[1758705591551,9.34735093,210.41,210.33,7.73]
[1758705591751,7.97,210.38,210.31,346.1]
[1758705591957,1.37735093,210.37,210.31,461.6]
[1758705592753,4.2775,210.35,210.31,346.1]
[1758705592956,7.97,210.36,210.31,346.1]
[1758705593156,1.37735093,210.37,210.31,346.1]
[1758705593360,7.97,210.36,210.31,346.1]
[1758705593558,7.38,210.36,210.31,346.1]
[1758705593853,4.2776,210.34,210.31,354.04]
[1758705594255,11.6576,210.34,210.31,354.04]
[1758705596757,5.65495093,210.34,210.26,7.94]
[1758705596962,13.03495093,210.34,210.3,123.46]
[1758705599655,13.03495093,210.34,210.3,115.52]
[1758705599856,13.03495093,210.34,210.31,7.64]
[1758705600860,7.43,210.33,210.3,115.52]
[1758705601056,5.65495093,210.34,210.3,115.52]
[1758705601462,7.43,210.33,210.3,115.52]
[1758705602163,7.43,210.33,210.3,123.16]
[1758705602354,8.80735093,210.32,210.25,7.64]
[1758705602560,1.37735093,210.3,210.26,24.74]
[1758705603063,4.2788,210.28,210.26,24.74]
[1758705603258,11.7088,210.28,210.26,24.74]
[1758705603660,4.2788,210.28,210.26,32.38]
[1758705605365,4.2788,210.28,210.26,7.64]
[1758705606062,4.2788,210.28,210.19,351.67785093]
[1758705606265,4.2788,210.28,210.21,7.64]
[1758705609470,4.2788,210.28,210.21,9.01735093]
[1758705610972,1.37735093,210.3,210.22,7.64]
[1758705611965,1.37735093,210.3,210.22,27.24]
[1758705612466,4.2789,210.28,210.22,27.24]
[1758705612775,4.2789,210.28,210.23,7.64]
[1758705613569,4.2789,210.28,210.22,19.6]
[1758705613968,4.2789,210.28,210.23,7.64]
[1758705614164,4.2789,210.28,210.22,19.6]
[1758705614875,4.2789,210.28,210.23,7.64]
[1758705615071,4.2789,210.28,210.22,19.6]
[1758705615277,1.37735093,210.29,210.23,7.64]
[1758705617879,5.65605093,210.29,210.23,7.64]
[1758705618869,7.43,210.27,210.21,7.64]
[1758705619076,7.43,210.27,210.22,46.9]
[1758705619273,7.43,210.27,210.23,7.64]
[1758705619981,4.2791,210.27,210.23,7.64]
[1758705620182,11.7091,210.27,210.22,46.9]
[1758705620378,7.43,210.26,210.23,7.64]
[1758705621370,7.43,210.26,210.22,46.9]
[1758705621680,7.43,210.26,210.23,7.64]
[1758705622075,4.2793,210.26,210.23,7.64]
[1758705622279,7.43,210.25,210.23,7.64]
[1758705622478,7.43,210.25,210.17,9.01735093]
[1758705622679,4.2799,210.23,210.17,9.01735093]
[1758705622986,4.2799,210.23,210.17,123.08]
[1758705623777,4.28,210.22,210.17,123.08]
[1758705624078,7.75,210.21,210.18,7.5]
[1758705624283,7.75,210.24,210.18,7.5]
[1758705624478,1.37735093,210.25,210.17,115.44]
[1758705624685,12.0305,210.2,210.17,122.94]
[1758705624884,7.75,210.19,210.17,122.94]
[1758705625784,7.75,210.19,210.17,7.5]
[1758705626175,7.75,210.19,210.15,115.5]
[1758705626176,4.2805,210.2,210.16,7.5]
[1758705626579,4.2805,210.2,210.15,115.5]
[1758705626774,4.28,210.22,210.16,7.5]
[1758705630181,4.2803,210.21,210.15,115.5]
[1758705630377,4.2803,210.21,210.16,7.5]
[1758705630682,4.2803,210.21,210.15,115.5]
[1758705630881,4.2803,210.21,210.16,7.5]
[1758705631182,4.2803,210.21,210.15,115.5]
[1758705631386,4.2803,210.21,210.16,7.5]
[1758705631688,9.12735093,210.24,210.16,7.5]
[1758705632877,4.2799,210.23,210.16,7.5]
[1758705634184,4.2801,210.22,210.16,7.5]
[1758705634386,9.12735093,210.24,210.16,7.5]
[1758705635283,1.37735093,210.22,210.16,7.5]
[1758705635481,1.37735093,210.2,210.15,115.5]
[1758705635982,1.37735093,210.2,210.14,115.46]
[1758705636186,1.37735093,210.19,210.14,115.46]
[1758705636480,7.75,210.18,210.14,115.46]
[1758705636675,1.37735093,210.19,210.14,115.46]
[1758705636876,4.2813,210.16,210.14,115.46]
[1758705637080,4.2813,210.16,210.14,122.96]
[1758705638480,4.2813,210.16,210.14,115.46]
[1758705638784,4.2813,210.16,210.15,7.5]
[1758705639575,4.2808,210.18,210.14,115.46]
[1758705639775,1.37735093,210.22,210.15,7.5]
[1758705640789,4.2804,210.2,210.15,7.5]
[1758705640986,4.2804,210.2,210.14,115.46]
[1758705641182,4.2804,210.2,210.15,7.5]
[1758705641485,4.2804,210.2,210.14,115.46]
[1758705641884,4.2804,210.2,210.15,7.5]
[1758705642385,4.2804,210.2,210.14,115.46]
[1758705642684,4.2804,210.2,210.15,7.5]
[1758705642885,4.2804,210.2,210.14,115.46]
[1758705643085,5.65735093,210.22,210.15,7.5]
[1758705644287,4.2802,210.21,210.15,7.5]
[1758705644587,4.2802,210.21,210.15,8.87735093]
[1758705648590,4.2802,210.21,210.15,7.5]
[1758705652086,4.2804,210.2,210.14,115.46]
[1758705652286,4.2804,210.2,210.15,7.5]
[1758705652486,12.0304,210.2,210.15,7.5]
[1758705652995,12.0304,210.2,210.14,115.46]
[1758705653486,12.0304,210.2,210.15,7.51]
[1758705653693,12.0304,210.2,210.14,115.46]
[1758705654389,12.0304,210.2,210.15,7.51]
[1758705654589,12.0304,210.2,210.14,115.46]
[1758705654893,12.0304,210.2,210.15,7.51]
[1758705655390,12.0304,210.2,210.14,115.46]
[1758705655595,12.0304,210.2,210.15,7.51]
[1758705655798,7.75,210.2,210.15,7.51]
[1758705656094,7.78,210.21,210.15,7.51]
[1758705656795,12.0602,210.21,210.15,7.51]
[1758705658502,7.78,210.21,210.15,7.51]
[1758705659093,7.78,210.21,210.15,11.50472851]
[1758705660496,12.0602,210.21,210.15,11.50472851]
[1758705662801,7.72,210.2,210.16,85.31]
[1758705663100,4.2802,210.21,210.16,85.31]
[1758705663399,7.72,210.22,210.13,3.99472851]
[1758705663591,2.15834218,210.23,210.14,110.26]
[1758705663797,7.72,210.22,210.14,110.26]
[1758705664396,2.15834218,210.23,210.14,110.26]
[1758705664800,7.72,210.17,210.14,110.26]
[1758705665200,7.72,210.17,210.14,114.25472851]
[1758705666104,7.72,210.17,210.14,121.58472851]
[1758705667005,7.72,210.16,210.14,121.58472851]
[1758705667207,7.72,210.16,210.14,126.68472851]
[1758705667605,7.72,210.16,210.14,11.32472851]
[1758705667806,7.72,210.16,210.14,126.68472851]
[1758705669710,4.281,210.17,210.14,126.68472851]
[1758705670005,12.001,210.17,210.14,126.68472851]
[1758705670810,12.001,210.17,210.15,7.33]
[1758705672413,12.001,210.17,210.15,122.71]
[1758705673314,4.281,210.17,210.16,7.33]
[1758705674214,4.2806,210.19,210.16,7.33]
[1758705674416,7.72,210.18,210.16,7.33]
[1758705675016,12.0008,210.18,210.16,7.33]
[1758705675210,7.72,210.17,210.15,115.38]
[1758705675410,7.72,210.17,210.15,122.71]
[1758705676318,4.2808,210.18,210.16,7.33]
[1758705676516,12.0008,210.18,210.16,7.33]
[1758705677317,7.72,210.2,210.15,119.37472851]
[1758705677616,7.72,210.2,210.16,7.33]
[1758705678020,7.72,210.2,210.15,119.37472851]
[1758705678214,7.72,210.2,210.16,3.99472851]
[1758705678617,7.72,210.2,210.17,7.33]
[1758705678813,7.72,210.27,210.18,115.38]
[1758705679018,2.15834218,210.27,210.18,122.71]
[1758705679218,7.72,210.26,210.18,122.71]
[1758705679816,4.2798,210.23,210.18,122.71]
[1758705680021,68.72014218,210.27,210.19,115.38]
[1758705680316,7.72,210.26,210.18,115.4]
[1758705680509,4.2802,210.21,210.18,115.4]
[1758705680717,12.0002,210.21,210.18,115.4]
[1758705680919,12.0002,210.21,210.18,122.73]
[1758705683523,12.0002,210.21,210.18,115.4]
[1758705683724,4.2802,210.21,210.19,7.6]
[1758705687232,12.1602,210.21,210.19,7.6]
[1758705692235,7.88,210.2,210.17,7.6]
[1758705692434,7.88,210.2,210.18,115.36]
[1758705692937,12.1604,210.2,210.18,122.96]
[1758705695638,4.2804,210.2,210.18,122.96]
[1758705695838,12.1598,210.23,210.19,7.6]
[1758705696038,12.1598,210.23,210.18,115.36]
[1758705696738,12.1598,210.23,210.19,7.6]
[1758705696939,12.1601,210.22,210.19,7.6]
[1758705697137,7.88,210.21,210.19,7.6]
[1758705697741,4.2801,210.22,210.18,115.36]
[1758705697942,4.2802,210.21,210.19,7.6]
[1758705698543,7.88,210.22,210.19,7.6]
[1758705698836,7.88,210.22,210.18,115.36]
[1758705699244,7.88,210.22,210.19,7.6]
[1758705700144,4.2802,210.21,210.19,7.6]
[1758705700340,12.1602,210.21,210.19,7.6]
[1758705700541,12.1602,210.21,210.18,115.36]
[1758705700742,12.1602,210.21,210.18,122.96]
[1758705702547,12.1602,210.21,210.18,115.36]
[1758705702747,12.1602,210.21,210.19,7.6]
[1758705704148,7.88,210.19,210.18,115.36]
[1758705704350,7.88,210.19,210.16,7.6]
[1758705704551,7.88,210.19,210.17,115.36]
[1758705705049,7.88,210.19,210.17,122.96]
[1758705705651,7.88,210.19,210.17,7.6]
[1758705705852,12.1607,210.19,210.17,122.96]
[1758705706541,4.2807,210.19,210.17,115.36]
[1758705706746,4.2807,210.19,210.17,122.96]
[1758705707753,4.2807,210.19,210.18,7.6]
[1758705709847,4.2802,210.21,210.18,7.6]
[1758705710052,7.88,210.2,210.18,7.6]
[1758705711963,12.1604,210.2,210.18,7.6]
[1758705718259,4.2804,210.2,210.18,7.6]
[1758705718453,12.0704,210.2,210.18,7.6]
[1758705721261,4.28,210.22,210.17,73.06]
[1758705721461,7.79,210.23,210.17,7.76]
[1758705721656,7.79,210.23,210.17,108.32]
[1758705721853,1.38154032,210.24,210.17,108.32]
[1758705722057,7.79,210.23,210.17,108.32]
[1758705722762,4.2805,210.2,210.17,108.32]
[1758705722962,7.79,210.2,210.17,108.32]
[1758705723158,7.79,210.23,210.17,108.32]
[1758705723554,1.38154032,210.18,210.13,4.00962357]
[1758705723760,7.79,210.17,210.11,11.76962357]
[1758705724058,1.38154032,210.16,210.11,4.00962357]
[1758705724257,7.79,210.15,210.12,7.76]
[1758705724658,4.2817,210.14,210.12,7.76]
[1758705724858,1.38154032,210.14,210.1,4.00962357]
[1758705725058,7.79,210.13,210.1,7.76]
[1758705725661,1.38154032,210.17,210.1,4.00962357]
[1758705725962,1.38154032,210.17,210.12,7.76]
[1758705726161,9.17154032,210.17,210.11,11.76962357]
[1758705726362,12.0712,210.16,210.11,7.76]
[1758705726567,12.0712,210.16,210.1,8.29182357]
[1758705726967,12.0712,210.16,210.11,7.76]
[1758705727272,12.0712,210.16,210.1,8.29182357]
[1758705727471,12.0712,210.16,210.11,7.76]
[1758705727770,12.0712,210.16,210.1,8.29182357]
[1758705728071,12.0712,210.16,210.11,7.76]
[1758705728270,12.0712,210.16,210.1,8.29182357]
[1758705728472,12.0712,210.16,210.1,8.28817546]
[1758705728770,12.0712,210.16,210.11,7.76]
[1758705728966,1.38154032,210.17,210.12,7.76]
[1758705729167,1.38154032,210.17,210.11,8.28807546]
[1758705729569,9.17154032,210.17,210.11,8.28807546]
[1758705729765,9.17154032,210.17,210.12,7.76]
[1758705729961,9.17154032,210.17,210.11,8.28807546]
[1758705730569,1.38154032,210.17,210.11,8.28807546]
[1758705730871,1.38154032,210.17,210.12,7.76]
[1758705731075,9.17154032,210.17,210.11,8.28807546]
[1758705731268,13.45254032,210.17,210.12,7.76]
[1758705731467,7.79,210.16,210.11,8.28807546]
[1758705732073,7.79,210.16,210.12,7.76]
[1758705732972,4.2804,210.2,210.12,7.76]
[1758705733175,7.79,210.19,210.13,7.76]
[1758705733374,7.79,210.16,210.1,11.76597546]
[1758705733673,7.79,210.16,210.11,123.12]
[1758705733875,9.17154032,210.17,210.11,123.12]
[1758705734771,4.2814,210.15,210.11,115.36]
[1758705735071,66.5822,210.21,210.11,115.36]
[1758705735072,66.5873,210.19,210.11,115.36]
[1758705735267,1.38154032,210.17,210.11,115.36]
[1758705735670,1.38154032,210.17,210.11,123.12]
[1758705736775,4.2817,210.14,210.12,7.76]
[1758705737375,4.2817,210.14,210.11,115.36]
[1758705738165,4.2817,210.14,210.12,7.76]
[1758705738374,4.2817,210.14,210.11,115.36]
[1758705738776,4.2817,210.14,210.12,7.76]
[1758705738972,4.2812,210.16,210.11,115.36]
[1758705739469,4.2812,210.16,210.12,7.76]
[1758705739667,4.2808,210.18,210.12,7.76]
[1758705739875,7.79,210.19,210.12,7.76]
[1758705740178,1.38154032,210.21,210.13,7.76]
[1758705740678,7.79,210.2,210.13,7.76]
[1758705741978,7.79,210.2,210.12,123.12]
[1758705742173,1.38154032,210.21,210.12,123.12]
[1758705742374,7.79,210.2,210.12,123.12]
[1758705742774,4.2813,210.16,210.12,123.12]
[1758705742974,4.2813,210.16,210.13,7.76]
[1758705743475,11.5813,210.16,210.12,7.67]
[1758705743676,4.2813,210.16,210.12,115.36]
[1758705743875,4.2813,210.16,210.13,7.67]
[1758705744378,4.2813,210.16,210.12,115.36]
[1758705744577,4.2813,210.16,210.13,7.67]
[1758705744779,4.2813,210.16,210.12,115.36]
[1758705745280,4.2813,210.16,210.13,7.67]
[1758705745475,4.2813,210.16,210.12,115.36]
[1758705745874,4.2813,210.16,210.13,7.67]
[1758705746080,4.2813,210.16,210.12,115.36]
[1758705746280,4.2813,210.16,210.13,7.67]
[1758705746580,4.2813,210.16,210.12,115.36]
[1758705746778,4.2813,210.16,210.13,7.67]
[1758705747178,4.2813,210.16,210.12,115.36]
[1758705747378,4.2813,210.16,210.13,7.67]
[1758705747785,4.2813,210.16,210.12,115.36]
[1758705748178,1.38154032,210.22,210.13,7.67]
[1758705748382,1.38154032,210.22,210.14,7.67]
[1758705748582,7.3,210.21,210.14,7.67]
[1758705748778,11.5802,210.21,210.14,7.67]
[1758705748982,7.3,210.21,210.14,7.67]
[1758705749181,7.3,210.18,210.14,7.67]
[1758705749780,4.2813,210.16,210.14,7.67]
[1758705749976,11.5813,210.16,210.13,7.67]
[1758705751090,4.2813,210.16,210.12,26.92]
[1758705751386,11.5813,210.16,210.13,7.67]
[1758705753189,4.2813,210.16,210.13,7.67]
[1758705753390,4.2813,210.16,210.12,26.92]
[1758705753587,4.2813,210.16,210.13,7.67]
[1758705753790,4.2813,210.16,210.12,26.92]
[1758705753990,4.2813,210.16,210.13,7.67]
[1758705754387,4.2808,210.18,210.13,7.67]
[1758705754588,1.38154032,210.22,210.13,7.67]
[1758705754791,1.38154032,210.22,210.14,7.67]
[1758705755396,1.38154032,210.22,210.15,7.67]
[1758705756090,4.2807,210.19,210.14,7.67]
[1758705756294,1.38154032,210.22,210.14,4.00534272]
[1758705756489,1.38154032,210.22,210.15,7.67]
[1758705757092,1.38154032,210.22,210.16,7.67]
[1758705759789,4.2802,210.21,210.16,7.67]
[1758705759994,4.2802,210.21,210.15,7.67]
[1758705761090,4.2804,210.2,210.15,7.67]
[1758705761292,4.2804,210.2,210.14,8.28684272]
[1758705761499,11.5804,210.2,210.14,4.00534272]
[1758705761700,11.5804,210.2,210.15,7.67]
[1758705762099,11.5804,210.2,210.14,4.00534272]
[1758705762298,11.5804,210.2,210.15,7.67]
[1758705762698,11.5804,210.2,210.14,4.00534272]
[1758705763100,11.5804,210.2,210.15,7.67]
[1758705763301,7.3,210.2,210.14,4.00534272]
[1758705763504,4.28,210.22,210.16,7.67]
[1758705763705,7.3,210.27,210.16,7.67]
[1758705763904,7.3,210.25,210.16,7.67]
[1758705764206,1.38154032,210.24,210.16,7.67]
[1758705764802,4.2801,210.22,210.16,7.67]
[1758705766205,4.2802,210.21,210.15,5.38688304]
[1758705766401,4.2802,210.21,210.16,7.67]
[1758705766608,7.3,210.23,210.15,7.67]
[1758705766811,7.3,210.21,210.15,7.67]
[1758705767808,4.2806,210.19,210.16,7.67]
[1758705768007,4.2806,210.19,210.13,29.76444591]
[1758705768008,4.2806,210.19,210.13,31.14598623]
[1758705768711,4.2806,210.19,210.14,7.67]
[1758705769406,4.2806,210.19,210.13,29.76444591]
[1758705769614,4.2806,210.19,210.13,31.14598623]
[1758705769810,4.2806,210.19,210.13,31.14616229]
[1758705770012,4.2806,210.19,210.14,7.67]
[1758705770809,4.2809,210.18,210.13,29.76462197]
[1758705771209,4.2809,210.18,210.14,7.67]
[1758705771411,4.2809,210.18,210.13,29.76462197]
[1758705771801,4.2809,210.18,210.14,7.67]
[1758705772004,4.2809,210.18,210.13,29.76462197]
[1758705772212,4.2809,210.18,210.14,7.67]
[1758705772412,4.2809,210.18,210.13,29.76462197]
[1758705772612,4.2809,210.18,210.14,7.67]
[1758705772807,4.2809,210.18,210.13,29.76462197]
[1758705773011,4.2809,210.18,210.14,7.67]
[1758705773612,4.2809,210.18,210.14,7.89]
[1758705774611,4.2809,210.18,210.13,29.76462197]
[1758705775507,4.2809,210.18,210.14,7.89]
[1758705776110,4.2809,210.18,210.13,29.76462197]
[1758705777609,4.2809,210.18,210.14,7.89]
[1758705778415,4.2809,210.18,210.13,29.76462197]
[1758705778609,4.2809,210.18,210.14,7.89]
[1758705778919,4.2809,210.18,210.13,29.76462197]
[1758705779314,4.2809,210.18,210.14,8.02]
[1758705779919,4.2809,210.18,210.13,25.76]
[1758705780218,12.1809,210.18,210.13,25.76]
[1758705780415,7.9,210.2,210.12,4.00462197]
[1758705780716,7.9,210.19,210.11,8.02]
[1758705782814,4.2812,210.16,210.11,8.02]
[1758705783017,4.2812,210.16,210.1,4.00462197]
[1758705783717,12.1812,210.16,210.1,4.00462197]
[1758705783920,12.1812,210.16,210.11,8.02]
[1758705784119,12.1812,210.16,210.1,4.00462197]
[1758705784322,4.2814,210.15,210.11,12.02462197]
[1758705784520,4.2814,210.15,210.11,4.00462197]
[1758705784717,4.2814,210.15,210.12,8.02]
[1758705784918,4.2814,210.15,210.11,4.00462197]
[1758705785225,7.9,210.22,210.14,12.02462197]
[1758705785417,7.9,210.22,210.15,8.02]
[1758705786125,77.89527898,210.26,210.15,8.02]
[1758705786126,4.2804,210.2,210.15,8.02]
[1758705786513,7.9,210.25,210.16,8.02]
[1758705787017,4.2796,210.24,210.17,4.2808]
[1758705787215,4.2796,210.24,210.18,8.02]
[1758705788319,11.81477,210.28,210.19,8.02]
[1758705788518,11.81477,210.28,210.2,8.02]
[1758705789321,4.2792,210.26,210.2,8.02]
[1758705789521,11.81477,210.28,210.2,8.02]
[1758705790921,16.09347,210.28,210.22,8.02]
[1758705795819,11.81477,210.28,210.23,8.02]
[1758705796024,11.81477,210.28,210.22,4.2798]
[1758705796218,11.81477,210.28,210.24,4.2793]
[1758705796419,11.81477,210.28,210.25,8.02]
[1758705796818,11.81477,210.28,210.24,94.90462197]
[1758705797017,11.81477,210.28,210.22,115.5]
[1758705797420,11.81477,210.28,210.23,8.02]
[1758705797622,11.81477,210.28,210.22,115.5]
[1758705797824,11.81477,210.28,210.23,8.02]
[1758705798024,11.81477,210.28,210.22,119.7798]
[1758705798226,11.81477,210.28,210.23,8.02]
[1758705798524,11.81477,210.28,210.22,119.7798]
[1758705798931,11.81477,210.28,210.23,8.02]
[1758705799225,11.81477,210.28,210.22,119.7798]
[1758705799622,11.81477,210.28,210.23,8.02]
[1758705799925,11.81477,210.28,210.22,119.7798]
[1758705800224,11.81477,210.28,210.23,8.02]
[1758705800424,11.81477,210.28,210.22,119.7798]
[1758705800726,7.9,210.27,210.21,115.5]
[1758705800923,7.9,210.27,210.19,8.02]
[1758705801128,7.9,210.27,210.2,115.54]
[1758705801425,4.2796,210.24,210.21,8.02]
[1758705801728,7.9,210.27,210.21,8.02]
[1758705802829,12.1795,210.25,210.21,8.02]
[1758705803127,7.9,210.24,210.21,8.02]
[1758705803830,7.41,210.24,210.17,7.96]
[1758705804229,7.41,210.24,210.17,123.54]
[1758705804424,7.41,210.18,210.17,115.58]
[1758705809536,4.2807,210.19,210.17,115.58]
[1758705809921,11.6907,210.19,210.17,115.58]
[1758705815031,11.6907,210.19,210.17,123.54]
[1758705819640,4.2807,210.19,210.17,123.54]
[1758705819838,4.2801,210.21,210.18,7.96]
[1758705820233,11.6901,210.21,210.18,7.96]
[1758705822340,7.41,210.2,210.18,7.96]
[1758705822941,4.2801,210.21,210.17,115.58]
[1758705823535,4.2801,210.21,210.18,7.96]
[1758705823730,11.6901,210.21,210.18,7.96]
[1758705825540,4.2804,210.2,210.18,7.96]
[1758705825737,7.41,210.19,210.17,115.58]
[1758705825939,7.41,210.19,210.17,123.54]
[1758705826143,7.41,210.18,210.17,115.58]
[1758705828341,4.2807,210.19,210.17,115.58]
[1758705828644,11.6907,210.19,210.17,115.58]
[1758705829149,7.41,210.18,210.17,115.58]
[1758705829447,4.2813,210.15,210.14,7.96]
[1758705829636,4.2813,210.15,210.14,123.4]
[1758705840446,4.2811,210.17,210.14,123.4]
[1758705840647,1.38181726,210.21,210.15,7.52]
[1758705840842,8.92181726,210.23,210.17,7.52]
[1758705841046,4.2798,210.23,210.19,7.52]
[1758705841354,4.2798,210.23,210.2,115.38]
[1758705841549,4.2793,210.25,210.2,115.38]
[1758705841848,4.2793,210.25,210.21,7.52]
[1758705842154,4.2793,210.25,210.23,7.52]
[1758705842358,11.8193,210.25,210.24,115.46]
[1758705842751,4.2793,210.25,210.24,122.98]
[1758705843155,4.2793,210.25,210.24,115.46]
[1758705843362,11.8193,210.25,210.24,115.46]
[1758705844461,4.279,210.27,210.25,7.52]